Cogmind - Beta 13 @@@ ROGUE MODE // 2024.03.01 @ 16:43:44 Player: monistgf Result: Destroyed by DE-XIT(R) with Subdweller Beam Cannon Performance ------------- Evolutions (0) 0 Regions Visited (2) 400 Robots Destroyed (6) 30 Value Destroyed (230) 230 Prototype IDs (0) 0 Alien Tech Used (0) 0 Bonus (0) 0 TOTAL SCORE: 660 Bonus ------- None Cogmind --------- Core Integrity 0/250 Matter 300/300 Energy 96/100 System Corruption 0% Temperature Cool (11) Movement Walking (120) Location -10/Subcaves Parts ------- > --- POWER (1) -------- (None) > --- PROPULSION (2) --- Aluminum Leg Aluminum Leg > --- UTILITY (2) ------ (None) > --- WEAPON (2) ------- Subdweller Laser > --- INVENTORY (5) ---- Subdweller Power Source Light Treads Aluminum Leg Aluminum Leg Assault Rifle Peak State ------------ > --- POWER ------------ Ion Engine > --- PROPULSION ------- Aluminum Leg Aluminum Leg > --- UTILITY ---------- Scrap Shield > --- WEAPON ----------- Subdweller Laser Assault Rifle > --- INVENTORY -------- Subdweller Power Source Light Treads Aluminum Leg Aluminum Leg Assault Rifle [Rating: 10] Favorites ----------- Power Light Ion Engine Engine Light Ion Engine Propulsion Aluminum Leg Leg Aluminum Leg Utility Small Storage Unit Device Heat Sink Storage Small Storage Unit Protection Scrap Shield Weapon Assault Rifle Energy Gun Small Laser Ballistic Gun Assault Rifle Build | -11 -10 -10 ------- Run | Yrd Mat Sub Slots Evolved . | . . . Power . | . . . Propulsion . | . . . Utility . | . . . Weapon . | . . . Parts Attached 10 | . 8 2 Power 1 | . 1 . Engine 1 | . 1 . Core . | . . . Reactor . | . . . Propulsion 3 | . 3 . Treads . | . . . Leg 3 | . 3 . Wheel . | . . . Hover . | . . . Flight . | . . . Utility 3 | . 2 1 Device 1 | . 1 . Storage 1 | . 1 . Processor . | . . . Hackware . | . . . Protection 1 | . . 1 Artifact . | . . . Weapon 3 | . 2 1 Energy Gun 1 | . . 1 Energy Cannon . | . . . Ballistic Gun 2 | . 2 . Ballistic Cannon . | . . . Launcher . | . . . Special Weapon . | . . . Impact Weapon . | . . . Slashing Weapon . | . . . Piercing Weapon . | . . . Special Melee Weapon . | . . . Unidentified Prototypes . | . . . Parts Lost 3 | . . 3 Power 1 | . . 1 Propulsion . | . . . Utility 1 | . . 1 Weapon 1 | . . 1 Highest Loss Streak 3 | . . 3 To Critical Strikes . | . . . Average Slot Usage (%) 90 | . 91 84 Engine 14 | . 14 14 Leg 28 | . 28 28 Device 5 | . 6 . Storage 11 | . 14 . Protection 2 | . . 13 Energy Gun 8 | . 8 7 Ballistic Gun 19 | . 19 20 Naked Turns . | . . . Heaviest Build 29 | 11 20 29 Greatest Support 20 | 20 20 20 Greatest Overweight (x) 1 | . . 1 Average Overweight (x) . | . . . Largest Inventory Capacity 10 | . 10 10 Average Capacity 8 | . 8 5 Most Carried 10 | . 10 10 Average Carried 6 | . 7 5 Final Capacity 10 | 8 10 5 Final Carried 10 | 6 10 5 Class Distribution -------------------- 100% | Mutant Dominant Class ---------------- Mutant | -10/Materials Mutant | -10/Subcaves Resources | -11 -10 -10 ----------- Run | Yrd Mat Sub Matter Collected 441 | 200 218 23 Remotely . | . . . Salvage Created 279 | . 279 . Parts 10 | . 10 . Haulers Intercepted . | . . . Recyclers Shooed . | . . . Parts Field Recycled . | . . . Retrieved Matter . | . . . Parts Self-Destructed 3 | . . 3 Prevented . | . . . Kills | -11 -10 -10 ------- Run | Yrd Mat Sub Combat Hostiles Destroyed 6 | . 6 . Guns 6 | . 6 . Classes Destroyed 1 | . 1 . Grunt 6 | . 6 . Best Kill Streak 2 | . 2 . Combat Bots Only 2 | . 2 . Max Kills in Single Turn 1 | . 1 . Gunslinging . | . . . Exploded . | . . . Melee . | . . . Uniques/NPCs Destroyed . | . . . Combat | -11 -10 -10 -------- Run | Yrd Mat Sub Hostile Shots Fired 76 | . 52 24 Missed 17 | . 12 5 Damage Taken 940 | . 474 466 Core 253 | . 167 86 Absorbed by Shields . | . . . Core Remaining (%) 100 | 100 . . Volleys Fired 34 | . 28 6 Largest 2 | . 2 2 Hottest 80 | . 60 80 Shots Fired 68 | . 56 12 Gun 68 | . 56 12 Cannon . | . . . Launcher . | . . . Special . | . . . Kinetic 52 | . 46 6 Thermal 16 | . 10 6 Explosive . | . . . Electromagnetic . | . . . Robot Hit Streak 11 | . 9 11 Robot Miss Streak 2 | . 2 1 Penetration Max . | . . . Secondary Targets . | . . . Shots Hit Robots 49 | . 39 10 Core Hits 15 | . 15 . Critical Kills . | . . . Critical Parts Destroyed . | . . . Critical Strikes . | . . . Melee Attacks . | . . . Impact . | . . . Slashing . | . . . Piercing . | . . . Sneak Attacks . | . . . Combat Hostiles . | . . . Follow-up Attacks . | . . . Damage Inflicted 625 | . 456 169 Guns 625 | . 456 169 Cannons . | . . . Explosions . | . . . Melee . | . . . Ramming . | . . . Kinetic 444 | . 379 65 Thermal 181 | . 77 104 Explosive . | . . . Electromagnetic . | . . . Impact . | . . . Slashing . | . . . Piercing . | . . . Highest Corruption . | . . . Average Corruption . | . . . Corruption Purged . | . . . Corruption Blocked . | . . . Overload Shots . | . . . Overflow Damage . | . . . Projectiles . | . . . Explosions . | . . . Melee . | . . . Knockbacks . | . . . Impact . | . . . Kinetic . | . . . Secondary . | . . . Self-Inflicted Damage . | . . . Shots . | . . . Rammed . | . . . Targets Rammed . | . . . Kicked . | . . . Crushed . | . . . Highest Temperature 96 | . 96 5 Average Temperature 57 | . 62 2 Received Heat Transfer 420 | . 288 132 Siege Activations . | . . . Robots Corrupted . | . . . Combat Hostiles . | . . . Parts Fried . | . . . Impact Corruptions . | . . . Robots Melted . | . . . Combat Hostiles . | . . . Parts Melted . | . . . Heat Transferred 300 | . 175 125 Parts Sabotaged . | . . . Parts Stolen . | . . . Parts Stripped . | . . . Power Chain Reactions . | . . . Alert | -11 -10 -10 ------- Run | Yrd Mat Sub Peak Influence 130 | . 130 . Initial . | . . . Average 24 | . 24 . Maximum Alert Level . | . . . Low Security (%) 100 | . 100 . Level 1 . | . . . Level 2 . | . . . Level 3 . | . . . Level 4 . | . . . Level 5 . | . . . High Security . | . . . Max Security . | . . . Squads Dispatched 1 | . 1 . Investigation . | . . . Extermination . | . . . Reinforcement 1 | . 1 . Assault . | . . . Garrison . | . . . Intercept . | . . . Searches Triggered . | . . . Construction Impeded . | . . . Haulers Reinforced . | . . . Active Scanning Responses . | . . . Cargo Convoy Interrupts . | . . . Stealth | -11 -10 -10 --------- Run | Yrd Mat Sub Distress Signals 1 | . 1 . Communications Jammed . | . . . Distress Signals . | . . . Times Spotted 18 | . 9 9 Peak Tracking Total 8 | . 3 8 Tactical Retreats . | . . . Traps | -11 -10 -10 ------- Run | Yrd Mat Sub Traps Triggered . | . . . Indirectly . | . . . Trap Hack Attempts . | . . . Triggered . | . . . Disarmed . | . . . Reprogrammed . | . . . Reused . | . . . Traps Extracted . | . . . Installed . | . . . Triggered . | . . . Machines | -11 -10 -10 ---------- Run | Yrd Mat Sub Machines Disabled . | . . . Max in Single Turn . | . . . Machines Repaired . | . . . Machines Dismantled . | . . . Machines Sabotaged . | . . . Overloaded Fab Kills . | . . . Hacking | -11 -10 -10 --------- Run | Yrd Mat Sub Machines Accessed 1 | . 1 . Terminals 1 | . 1 . Fabricators . | . . . Repair Stations . | . . . Recycling Units . | . . . Scanalyzers . | . . . Garrison Access . | . . . Total Hacks 1 | . 1 . Successful . | . . . Failed 1 | . 1 . Catastrophic 1 | . 1 . Database Lockouts . | . . . Manual . | . . . Terminals 1 | . 1 . Fabricators . | . . . Repair Stations . | . . . Recycling Units . | . . . Scanalyzers . | . . . Garrison Access . | . . . Terminal Hacks . | . . . Fabricator Hacks . | . . . Repair Station Hacks . | . . . Recycling Unit Hacks . | . . . Scanalyzer . | . . . Garrison Access Hacks . | . . . Unauthorized Hacks . | . . . Terminals . | . . . Fabricators . | . . . Repair Stations . | . . . Recycling Units . | . . . Scanalyzers . | . . . Garrison Access . | . . . Data Cores Recovered . | . . . Used . | . . . Hacking Detections 1 | . 1 . Full Trace Events . | . . . Feedback Events . | . . . Feedback Blocked . | . . . Robot Schematics Acquired . | . . . Robots Built . | . . . Authchips . | . . . Time . | . . . Total Robot Build Rating . | . . . Part Schematics Acquired . | . . . Parts Built . | . . . Authchips . | . . . Time . | . . . Total Part Build Rating . | . . . Parts Repaired . | . . . Time . | . . . Parts Recycled . | . . . Recycled Matter . | . . . Retrieved Matter . | . . . Retrieved Components . | . . . Parts Scanalyzed . | . . . Part Schematics Acquired . | . . . Parts Damaged . | . . . Bothacking | -11 -10 -10 ------------ Run | Yrd Mat Sub Used RIF Installer . | . . . Robots Hacked . | . . . Non-combat . | . . . Combat . | . . . Robot Hacks Applied . | . . . Relay Couplers Released . | . . . Fabnet Peak Effective % . | . . . Robots Rewired . | . . . Allies Hacked . | . . . Hacks Repelled . | . . . Allies | -11 -10 -10 -------- Run | Yrd Mat Sub Total Allies . | . . . Largest Group . | . . . Highest-Rated Group . | . . . Highest-Rated Ally . | . . . Total Orders . | . . . Ally Attacks . | . . . Total Damage . | . . . Kills . | . . . Allies Corrupted . | . . . Allies Melted . | . . . Intel | -11 -10 -10 ------- Run | Yrd Mat Sub Robot Analysis Total . | . . . Derelict Logs Recovered . | . . . Drone Launches . | . . . Drone Recoveries . | . . . Exploration | -11 -10 -10 ------------- Run | Yrd Mat Sub Turns Passed 845 | . 669 176 Spaces Moved 239 | 1 159 79 Core . | . . . Treads . | . . . Legs 239 | 1 159 79 Wheels . | . . . Hover . | . . . Flight . | . . . Fastest Speed 120 | 120 120 120 Average Speed 141 | 120 120 185 Slowest Speed 190 | 120 120 190 Overloaded Moves . | . . . Propulsion Burnouts . | . . . Robots Hopped . | . . . Cave-ins Triggered . | . . . Exploration Rate (%) 9 | 2 22 4 Regions Visited 2 Branch Regions 1 Pre-discovered Areas . | . . . Known Exits Taken . | . . . Unknown Exits Taken 2 | 1 1 . Scrap Searched 2 | . . 2 Spaces Dug . | . . . Terrain Destroyed . | . . . Melee . | . . . Projectile . | . . . AOE . | . . . Terrain Rammed . | . . . Walls Destroyed . | . . . Machines Disabled . | . . . Actions | -11 -10 -10 --------- Run | Yrd Mat Sub Total 679 | . 580 99 Wait 385 | . 381 4 Move 237 | . 158 79 Hop . | . . . Pick Up 3 | . 1 2 Fast Attach 3 | . 1 2 Attach 1 | . 1 . Detach 2 | . 1 1 Swap 6 | . 6 . Drop 8 | . 3 5 Fire 34 | . 28 6 Melee . | . . . Ram . | . . . Kick . | . . . Crush . | . . . Escape Stasis . | . . . Rewire . | . . . Trap . | . . . Miscellaneous . | . . . Route ------- -11/Scrapyard -10/Materials -10/Subcaves History --------- Turn | Location | Event 1 | -11/Scrapyard | Discovered new exit (range 0) 1 | -11/Scrapyard | Entered Materials 305 | -10/Materials | Build established: Mutant 514 | -10/Materials | Discovered new exit (range 5) 616 | -10/Materials | Core integrity fell below 50% 670 | -10/Materials | Entered Subcaves 822 | -10/Subcaves | Ambushed by swarm of Subdwellers 826 | -10/Subcaves | Ambushed by Subdwellers from Twisted Machinery 841 | -10/Subcaves | Core integrity fell below 20% 846 | -10/Subcaves | Destroyed by DE-XIT(R) with Subdweller Beam Cannon Last Messages --------------- 00822_ IE-U3J(h): "The Subs are coming!" 00823_ HV Slug penetrates 1Z-6HP(R). 00823_ Critical hit (Destroy). 00824_ 02-DMU(R) emerges from the Twisted Machinery. 00824_ K0-4YZ(R) emerges from the Twisted Machinery. 00824_ Acquired 3 matter. 00825_ 2X-PR1(R) emerges from the Twisted Machinery. 00826_ O8-HLX(R) emerges from the Twisted Machinery. 00826_ HV Slug penetrates 1Z-6HP(R). 00826_ 1Z-6HP(R) suffers critical hit (Destroy). 00826_ 1Z-6HP(R) knocked back. 00826_ DE-XIT(R) angrily emerges from the Twisted Machinery. 00836_ Scrap Shield destroyed. 00840_ Ion Engine destroyed. 00844_ Assault Rifle destroyed. Map ----- +----------------------------------------------------+ | ?## #???????????????????????????????????????? | | ?## # ##???????????????????????????????????????? | | ## =!##?#????????????????????????????????????????? | | # *=!#???????????????????????????????????????????? | | ## !##???????????????????????????????????????????? | | # = #???????????????????????????????????????????? | | # ##??????????????????????????????????????????? | | ## ##?????????????????????????????????????????? | | ?##### #?????????????????????????????????????????? | | ????## #?????????????????????????????????????????? | | ???## ##?????????????????????????????????????????? | | ??## ##??????????????????????????????????????????? | | ?## ##???????????????????????????????????????????? | | ?# ##????????????????????????????????????????????? | | ?# #?????????????????????????????????????????????? | | ?#=####?????????????????????##???????????????????? | | ?##[# ###???????????????#### #???????????????????? | | ## # ## ##???????####??## #""#???????????????????? | | #%### ######### #### # %"#???????????????????? | | ###?##### ]%| ## # ## !!#???????????????????? | | ????????############## ### %%#???????????????????? | | ?????????????????????###?##R ##??????????????????? | | ?????????????????????????#RR #??????????????????? | | ????????????????????????##; #??????????????????? | | ????????????????????????#;RRR##??????????????????? | | ????????????????????????#@ $#???????????????????? | | ??????????????????????? ;;;;;#??????????????? | | ??????????????????????# " ???????????? | | ??????????????????????# ???????????? | | ??????????????????????## ;; ?????????? | | ???????????????????????# ;# ??????????? | | ???????????????????????# ## ## ??????????? | | ??????????????????????? s ? #????????????? | | ??????????????????????? ?? """"#????????????? | | ??????????????????????? ?##"""#????????????? | | ?????????????????????? #???????????????????? | | ?????????????????????? ##???????????????????? | | ?????????????????????? #????????????????????? | | ??????????????????????### #????????????????????? | | ????????????????????????? ##????????????????????? | | ????????????????????????? ??????????????????????? | | ?????????????????????????????????????????????????? | | ?????????????????????????????????????????????????? | | ?????????????????????????????????????????????????? | | ?????????????????????????????????????????????????? | | ?????????????????????????????????????????????????? | | ?????????????????????????????????????????????????? | | ?????????????????????????????????????????????????? | | ?????????????????????????????????????????????????? | | ?????????????????????????????????????????????????? | +----------------------------------------------------+ Best States ------------- Heat Dissipation 35 Energy Generation 10 Energy Capacity 250 Matter Stores 300 Matter Capacity 300 Sight Range 16 Terrain Scan Density 10 Armor Coverage 800 Evasion (%) 55 Item Schematics ----------------- None Robot Schematics ------------------ None Fabricated ------------ Nothing Alien Tech Used ----------------- None Achievements -------------- None Challenges ------------ None Game ------ Seed HelicalUltimateMediator Manual? 0 Play Time 00:05:22 Cumulative 216.9 hours Start 2024.03.01 @ 16:39:37 End 2024.03.01 @ 16:43:44 Sessions 1 Manual Loads 0 Difficulty Rogue Special Mode None Game No. 130 Rogue 130 Adventurer 0 Explorer 0 Win Type - Total 2 Types 2/0/0/0/0/0/0/0/0 Lore% 48 Gallery% 68 Achievement% 56 Wizard Run 0 Options --------- Layout 1 ASCII 0 Keyboard 1 Movement Numpad Keybinds 0 Fullscreen 1 Font 32/SmallcapsGlow Map View 50x35 Zoom Use 0% Tactical HUD 1 Map Filters NONE Filters NONE Steam 1 RUN: 2d87f32f-1bf3-4dda-8d27-21bef4a5caee